bitfinex-derivatives/quotes_ETHF0:USTF0_20250904
["timestamp","ask_amount","ask_price","bid_price","bid_amount"]
[1757012088609,0.42074,4277.3,4277.2,0.9957]
[1757012088813,0.66074,4277.3,4277.2,0.9957]
[1757012089014,0.66074,4277.3,4276.1,1.29216]
[1757012089015,0.9716,4276.8,4276.2,3.2078]
[1757012089218,0.9716,4276.8,4276.1,0.43]
[1757012089219,0.70285,4276.2,4276.1,4.2035]
[1757012089413,1.11595,4276.2,4276.1,4.2035]
[1757012089717,1.3925,4275.7,4275.6,3.2078]
[1757012089909,0.24,4275.8,4275.6,3.2078]
[1757012090119,1.3925,4275.7,4275.6,3.2078]
[1757012090410,0.4131,4276.1,4275.2,0.43]
[1757012090713,1.2116,4276.1,4276.0,0.5657]
[1757012090912,1.2116,4276.1,4276.0,0.9957]
[1757012091110,0.5585,4275.7,4275.6,3.2078]
[1757012091313,0.9716,4275.7,4274.9,3.2078]
[1757012091612,0.9716,4275.0,4274.9,3.4871]
[1757012091914,0.6951,4275.4,4275.3,0.2793]
[1757012092113,0.6951,4275.4,4275.3,0.9957]
[1757012092318,0.522,4275.4,4275.3,0.9957]
[1757012092618,0.24,4275.5,4275.4,0.43]
[1757012092809,0.4131,4275.9,4275.4,0.9957]
[1757012093013,1.11597,4276.0,4275.9,0.9957]
[1757012093204,1.39247,4276.0,4275.9,0.9957]
[1757012093409,0.42087,4276.0,4275.9,0.9957]
[1757012093904,0.42087,4276.0,4275.9,4.2035]
[1757012095306,32.251,4276.4,4276.0,0.5981]
[1757012095511,4.1794,4276.7,4276.6,0.2793]
[1757012095707,4.1794,4276.7,4276.6,0.9957]
[1757012095912,3.4898,4276.7,4276.6,0.9957]
[1757012096311,4.1794,4276.7,4276.6,0.5657]
[1757012097209,3.7663,4276.7,4276.2,0.43]
[1757012097409,0.282,4276.3,4276.2,0.9957]
[1757012097611,0.9716,4276.3,4276.2,0.2793]
[1757012097811,0.24,4276.3,4276.2,0.5657]
[1757012098012,0.24,4276.5,4276.2,0.5657]
[1757012098211,0.24,4276.6,4276.2,0.5657]
[1757012098412,0.24,4276.6,4276.3,0.43]
[1757012098712,1.2116,4276.6,4276.5,0.9957]
[1757012098911,1.2116,4276.6,4276.5,0.5657]
[1757012099218,1.2116,4276.6,4276.5,0.2793]
[1757012099417,0.522,4276.6,4276.5,0.9957]
[1757012099719,1.2116,4276.6,4276.5,0.9957]
[1757012100017,1.2116,4276.6,4276.5,0.2793]
[1757012100416,3.2078,4276.7,4276.6,0.43]
[1757012100614,0.9716,4276.1,4276.0,0.9957]
[1757012100817,0.6951,4275.4,4275.3,4.2035]
[1757012101016,0.9716,4275.4,4275.3,3.7735]
[1757012101313,0.9716,4275.4,4275.3,0.5657]
[1757012101516,0.282,4274.9,4274.8,3.4871]
[1757012101715,0.9716,4274.9,4274.8,3.4871]
[1757012102015,0.24,4275.1,4274.8,4.2035]
[1757012102212,0.24,4275.1,4275.0,0.9957]
[1757012102617,0.1169,4275.6,4275.0,1.15477]
[1757012102816,0.4131,4276.9,4275.6,0.43]
[1757012103022,0.4131,4276.9,4276.2,0.43]
[1757012104024,0.42084,4276.4,4276.2,0.43]
[1757012104320,0.3995121,4276.3,4276.2,0.43]
[1757012104515,0.42084,4276.3,4276.2,0.43]
[1757012105119,0.42084,4276.3,4276.1,3.2078]
[1757012106410,0.3995121,4276.2,4276.1,3.2078]
[1757012106814,0.3995121,4276.2,4276.1,3.6378]
[1757012107113,1.01339159,4276.2,4276.1,3.6378]
[1757012107315,0.61387949,4276.2,4276.1,4.2035]
[1757012108419,0.834,4275.7,4275.6,3.2078]
[1757012108620,1.68787949,4275.7,4275.6,3.2078]
[1757012109423,1.26697949,4275.7,4275.1,3.2078]
[1757012109626,0.1664,4275.5,4275.1,3.2078]
[1757012109927,0.61387949,4275.4,4275.1,3.2078]
[1757012110121,0.4131,4275.2,4275.1,3.2078]
[1757012110321,1.26697949,4275.2,4275.1,3.2078]
[1757012111624,0.61387949,4275.2,4275.1,3.6378]
[1757012111817,0.61387949,4275.2,4275.1,7.8778]
[1757012112221,0.1664,4276.0,4275.3,0.42093]
[1757012112528,0.4131,4275.9,4275.8,3.2078]
[1757012113425,0.1664,4276.0,4275.6,3.2078]
[1757012113723,0.4131,4275.4,4274.5,3.2078]
[1757012113921,0.1664,4275.0,4274.9,0.02019203]
[1757012114117,0.5795,4275.0,4274.9,0.02019203]
[1757012114323,0.8205,4275.0,4274.9,0.02019203]
[1757012115120,0.8205,4275.0,4274.9,0.03561027]
[1757012115322,0.1664,4275.5,4274.9,0.03561027]
[1757012115526,0.4131,4275.4,4275.0,3.2078]
[1757012115924,0.1664,4275.5,4275.0,3.2078]
[1757012116120,0.1664,4275.5,4275.2,0.03672338]
[1757012116326,0.1664,4275.5,4275.3,0.0218]
[1757012116533,0.4131,4275.4,4275.2,0.03672338]
[1757012116735,0.1664,4275.5,4275.2,0.03672338]
[1757012117030,0.38423662,4275.1,4275.0,3.2078]
[1757012117232,0.38423662,4275.1,4275.0,3.2296]
[1757012117734,0.38423662,4275.1,4275.0,3.2078]
[1757012118027,0.38423662,4275.1,4275.0,3.2578]
[1757012118433,0.38423662,4275.1,4275.0,3.2078]
[1757012118624,0.83743662,4275.1,4275.0,3.2078]
[1757012119228,0.38423662,4275.1,4275.0,3.2573]
[1757012120626,0.1664,4276.0,4275.0,3.2078]
[1757012120833,0.4532,4276.3,4275.7,3.2573]
[1757012121034,0.4532,4276.3,4275.7,3.4983]
[1757012121432,0.461,4276.3,4275.7,3.4983]
[1757012121829,0.461,4276.3,4276.2,3.2078]
[1757012122137,0.461,4276.3,4276.2,3.4983]
[1757012122138,0.0078,4276.3,4276.2,3.4983]
[1757012122330,0.4532,4277.1,4276.3,0.42084]
[1757012122531,3.2078,4277.4,4276.8,0.0495]
[1757012122732,0.6231,4277.5,4277.2,3.2078]
[1757012122937,0.1699,4277.5,4277.2,3.2078]
[1757012123439,0.4532,4277.4,4277.2,3.2573]
[1757012124233,0.4532,4277.9,4277.3,0.2905]
[1757012124434,0.4532,4277.9,4277.8,3.2078]
[1757012124940,0.42068,4277.9,4277.8,3.2573]
[1757012125138,1.22135,4279.0,4277.8,3.2573]
[1757012125139,0.4206,4278.8,4277.8,7.44156]
[1757012125435,0.8738,4278.8,4278.7,3.2078]
[1757012125635,0.42079,4276.8,4276.4,0.42083]
[1757012125839,0.4532,4277.9,4276.5,0.242]
[1757012126035,0.1699,4278.0,4277.0,0.42077]
[1757012126241,0.4532,4278.3,4277.1,0.243]
[1757012126440,0.4532,4278.3,4277.8,0.42069]
[1757012126738,0.4532,4278.3,4278.2,3.2078]
[1757012127742,0.6231,4278.5,4278.2,3.2078]
[1757012127941,0.4532,4278.9,4278.3,0.244]
[1757012128134,0.4532,4278.9,4278.8,3.2078]
[1757012129231,4.4532,4278.9,4278.8,3.2078]
[1757012129431,0.4532,4278.4,4277.9,0.244]
[1757012129638,0.4532,4278.4,4277.3,3.4518]
[1757012129933,0.4532,4277.9,4277.8,3.2078]
[1757012132242,0.4532,4278.3,4277.8,3.2078]
[1757012132441,0.1699,4278.5,4277.9,0.66468]
[1757012132640,0.4532,4278.4,4278.3,3.2078]
[1757012132850,0.4532,4278.4,4278.3,3.4518]
[1757012133546,0.4532,4277.9,4277.5,3.2078]
[1757012134346,0.1699,4278.0,4277.5,3.2078]
[1757012134539,0.4532,4277.9,4277.5,3.2078]
[1757012134943,0.4532,4277.9,4277.6,0.244]
[1757012135144,0.1699,4278.0,4277.6,0.244]
[1757012135438,0.4532,4278.4,4277.6,0.244]
[1757012135840,0.4532,4278.4,4278.0,3.2078]
[1757012136550,0.1699,4278.5,4278.1,0.244]
[1757012136741,0.4532,4278.4,4278.1,0.244]
[1757012136942,0.1699,4278.5,4278.1,0.244]
[1757012137143,0.4532,4278.4,4278.1,0.244]
[1757012137642,0.1699,4278.5,4278.1,0.244]
[1757012138245,0.4532,4278.4,4278.1,0.244]
[1757012138940,0.4532,4278.4,4278.0,3.2078]
[1757012139445,0.1699,4278.5,4278.0,3.2078]
[1757012139742,0.4532,4278.4,4278.0,3.2078]
[1757012140348,0.4532,4278.4,4278.1,0.243]
[1757012141240,0.1699,4278.5,4278.1,0.243]
[1757012141440,0.4532,4278.4,4278.1,0.243]
[1757012141641,0.1699,4278.5,4278.1,0.243]
[1757012141938,0.4532,4278.4,4278.1,0.243]
[1757012142140,0.1699,4280.0,4278.1,0.243]
[1757012142141,0.42061,4278.7,4278.1,0.243]
[1757012142347,0.42059,4278.8,4278.7,0.4206]
[1757012142541,0.87379,4278.8,4278.7,0.6646]
[1757012142848,0.87379,4278.8,4278.7,0.244]
[1757012143742,0.87379,4278.8,4278.7,0.6646]
[1757012144747,0.4532,4279.4,4278.7,0.244]
[1757012144945,0.42058,4279.0,4278.7,0.244]
[1757012145145,0.4532,4279.6,4278.9,3.2078]
[1757012145345,0.42053,4279.5,4279.4,3.62833]
[1757012145550,1.04363,4279.5,4279.4,3.87233]
[1757012146243,0.6231,4279.5,4279.4,3.87233]
[1757012146740,0.4532,4279.7,4279.6,0.42052]
[1757012146940,0.4532,4279.7,4279.6,0.66452]
[1757012147143,0.87369,4279.9,4279.7,0.4205]
[1757012147338,0.87369,4279.9,4279.8,0.244]
[1757012147744,0.4532,4279.9,4279.8,0.244]
[1757012148347,0.1699,4280.5,4279.8,4.244]
[1757012148656,0.5895,4280.5,4280.4,3.2078]
[1757012148950,1.22086,4281.0,4280.4,3.4508]
[1757012148951,0.1699,4281.0,4280.4,3.4508]
[1757012149149,0.5895,4281.0,4280.9,3.2078]
[1757012152347,0.8853,4281.0,4280.9,3.2078]
[1757012152745,0.5895,4281.0,4280.9,3.2078]
[1757012152946,0.8853,4281.0,4280.9,3.2078]
[1757012154147,0.4159,4282.0,4280.9,3.2078]
[1757012154148,0.4196,4281.4,4280.9,3.2078]
[1757012154353,0.4196,4281.4,4281.2,0.42036]
[1757012154554,0.4196,4281.4,4281.3,0.243]
[1757012154950,0.2958,4281.4,4280.9,3.2078]
[1757012155148,0.8883,4281.0,4280.9,3.2078]
[1757012155453,0.8883,4281.0,4280.9,3.4508]
[1757012156046,0.5925,4281.0,4280.9,3.4508]
[1757012156749,1.01288,4281.0,4280.9,3.4508]
[1757012156949,0.5925,4280.5,4280.4,3.4508]
[1757012158050,0.5925,4280.5,4280.4,3.2078]
[1757012158549,0.5925,4280.5,4280.4,3.4508]
[1757012160142,0.4687,4281.0,4280.5,0.42043]
[1757012160348,0.5925,4281.0,4280.9,3.2078]
[1757012161656,0.4196,4281.7,4281.3,0.42035]
[1757012161857,0.4196,4281.7,4281.6,3.2078]
[1757012162057,0.4196,4281.7,4281.6,3.4508]
[1757012164055,0.4196,4281.9,4281.7,0.42031]
[1757012164249,0.4196,4281.9,4281.6,3.2078]
[1757012164449,0.1729,4282.0,4281.7,0.243]
[1757012164651,0.4196,4281.9,4281.7,0.243]
[1757012164848,0.5835,4281.8,4281.7,0.243]
[1757012165048,1.0031,4281.8,4281.7,0.243]
[1757012165648,0.4196,4281.7,4281.6,3.2078]
[1757012165855,1.0031,4281.7,4281.6,3.4508]
[1757012166354,1.0031,4281.7,4281.6,3.2078]
[1757012166555,1.0031,4281.7,4281.6,3.4508]
[1757012166753,0.7154,4282.4,4281.6,3.2078]
[1757012167054,0.4196,4281.2,4280.6,3.2078]
[1757012167244,0.4196,4279.4,4279.1,3.2078]
[1757012167548,0.4196,4279.4,4276.9,1.05196]
[1757012167744,0.23375,4279.3,4277.8,0.42069]
[1757012167949,0.4196,4279.2,4277.9,0.244]
[1757012168151,0.4196,4279.2,4278.0,0.244]
[1757012168443,0.5925,4279.0,4278.0,3.4518]
[1757012168651,0.1729,4278.0,4277.6,0.244]
[1757012168858,0.4196,4277.9,4277.5,0.244]
[1757012169351,0.4196,4277.9,4277.8,3.2078]
[1757012169947,4.4196,4277.9,4277.1,3.2078]
[1757012170152,0.1729,4277.5,4277.1,3.2078]
[1757012170657,0.4196,4277.4,4277.1,3.2078]
[1757012171661,0.42075,4277.3,4277.1,3.2078]
[1757012171859,0.84033,4277.4,4277.1,3.2078]
[1757012172256,0.4196,4277.8,4277.2,0.243]
[1757012172459,0.1729,4278.0,4277.8,0.42069]
[1757012172661,0.42065,4278.3,4277.8,0.66469]
[1757012172956,0.84025,4278.3,4278.2,3.2078]
[1757012173961,0.42062,4278.6,4278.2,3.4518]
[1757012174149,0.1729,4279.0,4278.4,0.42063]
[1757012174150,0.84019,4278.9,4278.4,0.42063]
[1757012174462,0.4196,4279.4,4278.8,3.2078]
[1757012174662,0.4196,4279.4,4278.8,3.4518]
[1757012174862,0.84014,4279.4,4279.3,3.2078]
[1757012178861,1.05126,4279.8,4279.3,3.2078]
[1757012178862,0.4205,4279.8,4279.3,7.4508]
[1757012179059,0.59338,4280.0,4279.3,3.4508]
[1757012179365,0.42048,4280.0,4279.9,3.2078]
[1757012179664,0.42047,4280.1,4279.9,3.4518]
[1757012180262,0.86267,4280.1,4279.9,3.4518]
[1757012180565,0.4422,4280.0,4279.9,3.4518]
[1757012180964,0.6073,4280.0,4279.9,3.4518]
[1757012181462,0.6073,4280.0,4279.9,3.2078]
[1757012182458,0.42047,4280.1,4279.9,3.2078]
[1757012183153,0.86267,4280.1,4279.9,3.62828]
[1757012183359,0.86265,4280.3,4280.1,0.42046]
[1757012183560,0.42045,4280.3,4280.1,0.42046]
[1757012183764,0.42044,4280.4,4280.2,0.42045]
[1757012184066,0.42046,4280.2,4280.1,0.243]
[1757012184466,0.86266,4280.2,4280.1,0.243]
[1757012185063,0.4422,4280.2,4280.1,0.243]
[1757012185777,0.1729,4280.5,4280.1,0.66346]
[1757012185975,1.03553,4280.5,4280.4,3.2078]
[1757012188873,1.03553,4280.5,4280.4,2.68266]
[1757012189080,1.03553,4280.5,4278.4,33.30059]
[1757012189081,0.4422,4279.9,4279.5,3.2078]
[1757012189377,0.1651,4280.0,4279.5,3.2078]
[1757012189776,0.4422,4279.9,4279.5,3.2078]
[1757012189979,0.1651,4280.0,4279.5,3.2078]
[1757012190178,0.4422,4279.9,4279.5,3.2078]
[1757012190573,0.1651,4280.0,4279.5,3.2078]
[1757012190773,0.4422,4279.9,4279.5,3.2078]
[1757012191078,0.1651,4280.0,4279.5,3.2078]
[1757012191272,0.4422,4279.9,4279.5,3.2078]
[1757012192176,0.1651,4280.0,4279.5,3.2078]
[1757012193173,0.4422,4279.9,4279.5,3.2078]
[1757012193776,0.4422,4280.3,4279.8,0.42049]
[1757012193984,0.4422,4280.3,4280.2,3.2078]
[1757012196677,0.86265,4280.3,4280.2,3.2078]
[1757012198576,0.42045,4280.3,4280.2,3.2078]
[1757012199378,0.86265,4280.3,4280.2,3.2078]
[1757012201188,0.42045,4280.3,4280.2,3.24407433]
[1757012201486,0.42045,4280.3,4280.2,3.66453433]
[1757012202580,0.42043,4280.5,4280.3,0.42044]
[1757012202783,0.42043,4280.5,4280.4,0.242]
[1757012203087,0.42043,4280.5,4280.4,0.27827433]
[1757012203287,1.22388,4281.0,4280.4,0.27827433]
[1757012203288,0.4204,4280.8,4280.7,0.42041]
[1757012203488,0.4204,4280.8,4280.7,3.87021]
[1757012203784,0.4204,4280.8,4280.7,3.4498]
[1757012204188,0.4204,4280.8,4280.7,3.48607433]
[1757012204383,0.4204,4280.8,4280.7,3.90648433]
[1757012204579,0.4204,4280.8,4280.7,3.90647433]
[1757012205281,0.4422,4281.2,4280.8,0.42039]
[1757012205484,0.42038,4281.0,4280.9,0.242]
[1757012205683,0.1651,4281.5,4281.2,0.42036]
[1757012205884,0.4422,4281.9,4281.4,3.2078]
[1757012206078,0.4422,4281.8,4281.4,3.4498]
[1757012206280,0.4422,4281.8,4281.6,0.03627433]
[1757012206484,0.4422,4281.9,4281.6,0.27827433]
[1757012206679,0.297,4281.8,4281.6,0.27827433]
[1757012206986,0.4422,4281.7,4281.6,0.27827433]
[1757012207782,0.4148,4281.9,4281.6,0.69859433]
[1757012207981,0.4148,4281.9,4281.7,0.42031]
[1757012208188,0.4148,4281.9,4281.8,0.27827433]
[1757012208777,0.1651,4282.0,4281.8,0.69856433]
[1757012208988,1.1387,4282.0,4281.9,3.4498]
[1757012209177,1.1387,4282.0,4281.9,3.48607433]
[1757012211887,0.8732,4282.0,4281.9,3.48607433]
[1757012212388,1.1387,4282.0,4281.9,3.48607433]
[1757012215587,1.1387,4282.0,4281.9,3.24407433]
[1757012219194,0.5799,4282.0,4281.9,3.24407433]
[1757012219693,0.1651,4282.5,4281.9,7.24407433]
[1757012219889,0.4148,4282.7,4282.4,3.2078]
[1757012220187,0.1651,4283.0,4282.5,0.241]
[1757012220188,0.7081,4282.9,4282.5,0.241]
[1757012220393,0.7081,4282.9,4282.5,0.27727433]
[1757012220693,0.9736,4282.6,4282.5,0.27727433]
[1757012221995,0.7081,4282.6,4282.5,0.27727433]
[1757012222192,0.7081,4283.4,4282.5,4.27727433]
[1757012222399,0.9736,4283.3,4283.2,3.2078]
[1757012223297,0.9736,4283.3,4283.2,3.24407433]
[1757012224099,0.9736,4283.3,4283.2,0.03627433]
[1757012227597,0.9736,4282.3,4282.2,3.2078]
[1757012229102,0.9736,4282.3,4280.3,1.0511]
[1757012229103,0.9736,4281.6,4281.5,3.4606]
[1757012229603,0.1593,4282.0,4281.5,3.4606]
[1757012229604,0.4148,4281.9,4281.8,0.0118]
[1757012229801,0.7081,4281.9,4281.8,0.0118]
[1757012229996,0.9736,4281.9,4281.8,0.0059]
[1757012230297,0.1593,4282.0,4281.8,0.43579]
[1757012230503,0.5741,4282.0,4281.8,0.43579]
[1757012230895,0.4148,4282.0,4281.9,0.0155]
[1757012231198,1.1329,4282.5,4282.4,0.0059]
[1757012232105,0.4148,4282.4,4282.2,3.2078]
[1757012232301,0.9736,4282.3,4282.2,3.2078]
[1757012233403,0.7081,4282.3,4282.2,3.2196]
[1757012234303,0.9736,4282.3,4282.2,3.2137]
[1757012234600,0.9736,4282.3,4282.2,3.2078]
[1757012237205,0.8674,4282.0,4281.9,0.0118]
[1757012238903,1.1329,4282.0,4281.9,0.0118]
[1757012243805,0.4015,4281.9,4281.7,3.2078]
[1757012244006,0.7181,4282.0,4281.7,3.4488]
[1757012244007,0.5395,4281.8,4281.7,3.4488]
[1757012244199,0.941,4281.8,4281.7,3.4488]
[1757012244906,0.4015,4281.8,4281.7,3.4488]
[1757012245110,0.4015,4281.8,4281.7,3.86911]
[1757012245312,0.4015,4281.8,4281.7,3.4488]
[1757012246309,0.6783,4281.8,4281.7,3.4488]
[1757012246513,0.941,4281.8,4281.7,3.4488]
[1757012247913,0.6783,4281.8,4281.7,3.4488]
[1757012248312,0.6783,4281.8,4281.7,3.86911]
[1757012248503,0.6783,4281.8,4281.7,3.4488]
[1757012248708,0.4015,4281.8,4281.7,3.4488]
[1757012249106,0.941,4281.8,4281.7,3.4488]
[1757012250408,0.941,4281.8,4281.4,0.241]
[1757012250603,1.0918,4281.5,4281.1,3.2078]
[1757012250915,0.941,4281.2,4281.0,0.241]
[1757012251710,0.1608,4281.0,4280.7,0.241]
[1757012251902,0.1608,4281.0,4280.6,3.2078]
[1757012251903,0.941,4280.7,4280.6,3.2078]
[1757012252109,0.4015,4280.7,4280.6,3.2078]
[1757012252913,0.4015,4280.9,4280.7,0.42041]
[1757012253215,0.4015,4280.9,4280.8,0.241]
[1757012253404,0.1608,4281.0,4280.8,0.66139]
[1757012253605,0.1608,4281.0,4280.6,3.2078]
[1757012253812,0.1608,4281.0,4280.6,3.4488]
[1757012254008,0.941,4280.7,4280.6,3.4488]
[1757012254816,0.941,4280.7,4280.6,0.241]
[1757012255116,0.941,4280.4,4280.3,0.241]
[1757012255514,0.5395,4280.4,4280.1,3.2078]
[1757012255712,0.4015,4280.2,4280.1,3.2078]
[1757012256018,0.1608,4280.5,4280.1,3.2078]
[1757012256216,0.1608,4280.5,4280.3,0.23896748]
[1757012256518,0.5623,4280.5,4280.4,0.241]
[1757012257318,0.8391,4280.5,4280.4,0.47996748]
[1757012259020,0.1608,4281.0,4280.4,0.90040748]
[1757012259315,0.1608,4281.0,4280.7,0.23896748]
[1757012259316,0.2768,4280.9,4280.7,0.23896748]
[1757012259519,0.4015,4280.8,4280.7,0.23896748]
[1757012259717,0.1508,4281.5,4280.7,0.23896748]
[1757012259718,0.4015,4281.3,4280.8,0.4204]
[1757012259919,0.4015,4281.3,4281.2,3.2078]
[1757012260315,0.4015,4281.3,4281.2,3.44676748]
[1757012261517,0.6783,4281.3,4281.2,3.44676748]
[1757012261822,0.4015,4281.3,4281.2,3.44676748]
[1757012264324,0.1508,4281.5,4281.3,0.42035]
[1757012264524,0.5523,4281.5,4281.4,0.241]
[1757012264717,0.5523,4281.5,4281.2,3.44676748]
[1757012264718,0.6783,4281.3,4281.2,3.44676748]
[1757012265022,0.6783,4281.3,4281.2,3.68776748]
[1757012265822,0.4015,4281.3,4281.2,4.10812748]
[1757012266024,0.1508,4281.5,4281.2,4.10812748]
[1757012266212,0.4015,4281.4,4281.2,4.10812748]
[1757012266417,0.4015,4281.4,4281.3,0.23896748]
[1757012266822,0.4015,4281.4,4281.3,0.65931748]
[1757012267028,0.4015,4281.7,4281.3,0.23896748]
[1757012267225,0.4015,4281.9,4281.6,0.42032]
[1757012267420,0.4015,4281.8,4281.7,3.4488]
[1757012267620,0.4015,4282.2,4281.7,3.4488]
[1757012267918,0.4147,4282.4,4281.7,3.4488]
[1757012268117,0.4147,4282.3,4282.2,3.2078]
[1757012268312,0.6816,4282.3,4282.2,3.68776748]
[1757012268712,0.6816,4282.3,4282.2,4.10802748]
[1757012269019,0.4147,4282.3,4282.2,4.10802748]
[1757012269822,0.4147,4282.3,4282.2,3.68776748]
[1757012270630,0.4147,4282.3,4282.2,4.10802748]
[1757012270821,0.4147,4282.3,4282.2,3.68776748]
[1757012271615,0.4147,4282.3,4282.2,4.10802748]
[1757012272228,0.5755,4282.5,4282.3,0.42025]
[1757012272429,3.2078,4283.8,4282.4,0.47996748]
[1757012272624,3.2078,4283.8,4282.8,3.2078]
[1757012272826,0.4147,4283.2,4282.9,0.241]
[1757012273018,0.1567,4284.0,4282.4,41.03896748]
[1757012273331,1.1141,4282.5,4282.4,0.23896748]
[1757012273624,1.03183252,4282.5,4282.4,0.508]
[1757012273820,1.03183252,4282.5,4282.4,0.241]
[1757012274426,1.03183252,4282.5,4282.4,0.508]
[1757012274927,0.4147,4282.4,4282.2,3.2078]
[1757012275126,0.9574,4282.4,4282.3,0.241]
[1757012278333,0.9574,4282.4,4282.3,0.508]
[1757012279428,0.9574,4282.4,4282.3,0.241]
[1757012279629,0.9574,4282.4,4282.3,0.508]
[1757012280831,0.9574,4282.4,4282.3,0.7911]
[1757012281326,0.4147,4282.4,4282.3,1.0142]
[1757012281924,0.9574,4282.4,4282.2,3.2078]
[1757012282128,0.9574,4282.4,4282.3,0.241]
[1757012282529,0.4147,4282.3,4282.2,3.2078]
[1757012282829,0.9574,4282.3,4281.7,0.241]
[1757012283029,0.9574,4281.7,4281.6,3.4488]
[1757012283230,0.9574,4281.7,4281.6,3.7158]
[1757012288842,0.9574,4281.7,4281.6,3.9989]
[1757012289035,0.6816,4281.7,4281.6,3.9989]
[1757012289228,0.1567,4282.5,4281.6,7.68235]
[1757012289435,0.6816,4282.4,4282.3,0.5501]
[1757012289634,0.6816,4282.4,4282.3,0.7911]
[1757012289837,0.9574,4282.4,4282.3,0.7911]
[1757012290338,0.1567,4281.0,4280.4,2.28137321]
[1757012290540,0.9574,4280.8,4280.7,3.4748]
[1757012290742,0.9574,4280.8,4280.7,0.267]
[1757012291446,0.9574,4280.8,4280.7,3.4748]
[1757012293533,0.4147,4280.8,4280.7,3.7579]
[1757012293842,0.8383,4281.0,4280.9,0.5501]
[1757012294035,1.1141,4281.0,4280.9,0.5501]
[1757012294232,0.4147,4280.9,4280.7,3.4488]
[1757012294438,0.9574,4280.8,4280.7,3.2078]
[1757012297944,0.1581,4280.5,4280.2,3.4488]
[1757012298146,0.9053,4280.3,4280.2,3.2078]
[1757012298746,0.666,4280.0,4279.9,0.241]
[1757012298940,0.3974,4279.9,4279.7,3.2078]
[1757012299146,0.9053,4279.8,4279.7,3.7335]
[1757012299645,0.9053,4279.8,4279.7,3.2078]
[1757012299842,0.1581,4280.0,4279.2,3.2078]
[1757012299843,0.3974,4279.4,4279.2,3.2078]
[1757012300040,0.9053,4279.4,4279.3,0.2548]
[1757012300748,0.3974,4279.3,4279.2,3.2078]
[1757012301043,0.9053,4279.3,4279.2,3.2078]
[1757012301437,0.9053,4279.3,4279.2,3.4626]
[1757012301648,0.6513,4279.3,4279.2,3.7335]
[1757012301844,0.3974,4279.3,4279.2,3.9435]
[1757012302250,0.412,4279.5,4279.4,0.5257]
[1757012302445,0.666,4279.5,4279.4,0.5257]
[1757012302952,1.0634,4279.5,4279.4,0.5257]
[1757012304352,0.3974,4279.5,4279.4,0.9767]
[1757012304949,0.8094,4279.5,4279.4,0.7667]
[1757012309347,1.0634,4279.5,4279.4,0.7667]
[1757012311151,0.8094,4279.5,4279.4,0.9767]
[1757012312352,0.1581,4280.0,4279.4,0.9767]
[1757012312353,3.3659,4280.5,4279.9,0.5257]
[1757012312553,1.0634,4280.5,4280.0,3.4488]
[1757012312761,0.5079,4280.2,4280.1,0.241]
[1757012313058,0.9053,4280.2,4280.1,0.241]
[1757012313654,0.9053,4280.2,4280.0,3.2078]
[1757012313851,0.5079,4279.6,4279.5,3.2078]
[1757012314054,0.9053,4279.6,4279.5,3.2078]
[1757012315053,0.9053,4279.6,4279.5,3.4626]
[1757012317061,0.9053,4279.6,4279.5,3.2078]
[1757012317357,0.9053,4279.3,4279.2,0.5257]
[1757012317554,0.9053,4279.3,4277.9,3.39363288]
[1757012317555,0.666,4277.5,4277.4,3.2078]
[1757012317755,0.666,4277.5,4277.4,3.7335]
[1757012317957,0.666,4277.5,4277.4,0.5257]
[1757012318157,0.666,4277.5,4277.4,3.7335]
[1757012318353,1.0634,4277.5,4277.4,3.9745]
[1757012321662,1.0634,4277.5,4277.4,0.7667]
[1757012321863,1.0634,4277.5,4276.7,3.2078]
[1757012322061,1.0634,4277.0,4276.9,0.2548]
[1757012322255,1.0634,4277.0,4276.9,3.4626]
[1757012322459,1.0634,4277.0,4276.4,3.2078]
[1757012323465,1.0634,4277.0,4275.8,0.42089]
[1757012323466,1.0634,4276.0,4275.9,0.2548]
[1757012325474,0.3974,4275.9,4275.8,3.2078]
[1757012325670,0.9053,4275.9,4275.8,3.2078]
[1757012325860,0.9053,4275.9,4275.8,3.7335]
[1757012326061,0.6513,4275.9,4275.8,3.7335]
[1757012327963,0.3886,4276.4,4276.3,0.5279]
[1757012328166,0.3886,4276.4,4276.3,3.9383]
[1757012328362,0.6468,4276.4,4276.3,3.7357]
[1757012329465,0.8982,4276.4,4276.3,3.7357]
[1757012330165,0.6468,4276.4,4276.3,3.7357]
[1757012330667,0.8982,4276.4,4276.3,3.7357]
[1757012332368,0.6468,4276.4,4276.3,3.7357]
[1757012332666,0.1581,4276.5,4276.3,3.7357]
[1757012332667,0.3886,4276.8,4276.4,0.2026]
[1757012332869,0.6468,4276.8,4276.7,0.5279]
[1757012333068,0.6468,4276.8,4276.7,0.7689]
[1757012333263,0.1168,4276.9,4276.8,0.2026]
[1757012333469,0.53759,4276.9,4276.8,3.9383]
[1757012333671,1.18439,4276.9,4276.8,3.7357]
[1757012334368,1.18439,4276.9,4276.8,0.5279]
[1757012334575,1.18439,4276.9,4276.8,3.7357]
[1757012334773,1.43579,4276.9,4276.8,0.2667]
[1757012334972,1.43579,4276.9,4276.8,3.4745]
[1757012335671,1.43579,4276.9,4276.8,3.7357]
[1757012338680,1.31899,4276.9,4276.8,3.7357]
[1757012340081,0.6468,4276.2,4276.1,0.5279]